[Event "African Games Rapid Open 2019"]
[Site "Casablanca"]
[Date "2019.08.27"]
[Round "8.14"]
[White "Espirito Santo, Waldyr"]
[Black "Traore, Bakary"]
[Result "0-1"]
[ECO "C48"]
[WhiteElo "1923"]
[BlackElo "2189"]
[Annotator "NA"]
[PlyCount "74"]
[EventDate "2019.08.26"]
[EventType "team-tourn"]
[EventCountry "MAR"]
[SourceTitle "playchess.com"]
[Source "ChessBase"]
[SourceQuality "1"]
[TimeControl "900+10"]

1. e4 {[%emt 0:00:00]} e5 {[%emt 0:00:00]} 2. Nf3 {[%emt 0:00:00]} Nf6 {[%emt 0:00:00]} 3. Nc3 {[%emt 0:00:00]} Nc6 {[%emt 0:00:00]} 4. Bb5 {[%emt 0:00:09]} Nd4 {[%emt 0:00:00]} 5. Nxd4 exd4 {[%emt 0:00:00]} 6. Ne2 {[%emt 0:02:40]} Nxe4 {[%emt 0:00:11]} 7. d3 {[%emt 0:00:29]} Nd6 {[%emt 0:00:05]} 8. Ba4 {[%emt 0:00:18]} Nf5 {[%emt 0:00:38]} 9. O-O {[%emt 0:00:10]} Be7 {[%emt 0:00:01]} 10. Bf4 {[%emt 0:00:24]} O-O {[%emt 0:00:11]} 11. Qd2 {[%emt 0:00:15]} d5 {[%emt 0:00:19]} 12. Rae1 {[%emt 0:00:57]} c6 {[%emt 0:00:21]} 13. c3 {[%emt 0:00:40]} Bf6 {[%emt 0:00:24]} 14. Bb3 {[%emt 0:01:04]} h6 {[%emt 0:02:28]} 15. h3 {[%emt 0:00:27]} a5 {[%emt 0:00:24]} 16. Bd1 {[%emt 0:00:18]} Be6 {[%emt 0:00:29]} 17. Kh1 {[%emt 0:00:13]} Bg5 {[%emt 0:00:20]} 18. cxd4 {[%emt 0:00:53]} Qf6 {[%emt 0:01:54]} 19. Bxg5 {[%emt 0:00:19]} hxg5 {[%emt 0:00:15]} 20. f4 {[%emt 0:02:54]} g4 {[%emt 0:00:14]} 21. hxg4 {[%emt 0:00:06]} Qh4+ {[%emt 0:00:01]} 22. Kg1 {[%emt 0:00:13]} Qxg4 {[%emt 0:00:03]} 23. Rf3 {[%emt 0:01:06]} Rfe8 {[%emt 0:00:26]} 24. Kf2 {[%emt 0:00:18]} Qh4+ {[%emt 0:00:09]} 25. Kg1 {[%emt 0:00:11]} Nh6 {[%emt 0:00:36]} 26. Re3 {[%emt 0:01:09]} Ng4 {[%emt 0:01:21]} 27. Rg3 {[%emt 0:00:34]} Bf5 {[%emt 0:00:21]} 28. Rxg4 {[%emt 0:00:34]} Bxg4 {[%emt 0:00:04]} 29. g3 {[%emt 0:00:08]} Qh3 {[%emt 0:00:17]} 30. b3 {[%emt 0:00:24]} Re7 {[%emt 0:00:34]} 31. Rf1 {[%emt 0:00:15]} Bxe2 {[%emt 0:00:25]} 32. Bxe2 {[%emt 0:00:03]} Qxg3+ {[%emt 0:00:03]} 33. Kh1 {[%emt 0:00:03]} Re6 {[%emt 0:00:03]} 34. Bh5 {[%emt 0:00:24]} Rh6 {[%emt 0:00:19]} 35. Qh2 {[%emt 0:00:32]} Qxh2+ {[%emt 0:00:04]} 36. Kxh2 {[%emt 0:00:01]} Rxh5+ {[%emt 0:00:03]} 37. Kg3 {[%emt 0:00:02]} Re8 0-1

[Event "African Games Rapid Open 2019"]
[Site "Casablanca"]
[Date "2019.08.27"]
[Round "8.15"]
[White "Amba, Oyon Marius Claude"]
[Black "Gohil, Mehul"]
[Result "1/2-1/2"]
[ECO "B93"]
[WhiteElo "1911"]
[BlackElo "2076"]
[Annotator "NA"]
[PlyCount "137"]
[EventDate "2019.08.26"]
[EventType "team-tourn"]
[EventCountry "MAR"]
[SourceTitle "playchess.com"]
[Source "ChessBase"]
[SourceQuality "1"]
[TimeControl "900+10"]

1. e4 {[%emt 0:00:00]} c5 {[%emt 0:00:00]} 2. Nf3 {[%emt 0:00:00]} d6 {[%emt 0:00:00]} 3. d4 {[%emt 0:00:00]} cxd4 {[%emt 0:00:00]} 4. Nxd4 {[%emt 0:00:00]} Nf6 {[%emt 0:00:00]} 5. Nc3 {[%emt 0:00:00]} a6 {[%emt 0:00:00]} 6. f4 {[%emt 0:00:00]} e6 {[%emt 0:00:06]} 7. Nf3 {[%emt 0:00:00]} Nc6 {[%emt 0:00:19]} 8. Bd3 {[%emt 0:00:02]} Be7 {[%emt 0:00:07]} 9. O-O {[%emt 0:00:01]} O-O {[%emt 0:00:17]} 10. Kh1 {[%emt 0:00:01]} Qc7 {[%emt 0:00:12]} 11. a3 {[%emt 0:00:16]} b5 {[%emt 0:00:09]} 12. Qe1 {[%emt 0:00:43]} b4 {[%emt 0:00:25]} 13. axb4 {[%emt 0:00:06]} Nxb4 {[%emt 0:00:04]} 14. e5 {[%emt 0:01:08]} Nxd3 {[%emt 0:00:22]} 15. cxd3 {[%emt 0:00:01]} dxe5 {[%emt 0:00:51]} 16. fxe5 {[%emt 0:00:03]} Nd7 {[%emt 0:00:02]} 17. Qg3 {[%emt 0:00:30]} f6 {[%emt 0:00:54]} 18. Bh6 {[%emt 0:00:12]} Rf7 {[%emt 0:00:04]} 19. Ne4 {[%emt 0:00:16]} Kh8 {[%emt 0:01:28]} 20. Nd6 {[%emt 0:03:58]} Bxd6 {[%emt 0:01:26]} 21. exd6 {[%emt 0:00:02]} Qd8 {[%emt 0:01:18]} 22. Bd2 {[%emt 0:00:06]} Nf8 {[%emt 0:01:15]} 23. Ne5 {[%emt 0:00:54]} Rb7 {[%emt 0:00:25]} 24. Qf3 {[%emt 0:01:12]} Kg8 {[%emt 0:01:07]} 25. Nc4 {[%emt 0:02:02]} Rab8 {[%emt 0:01:00]} 26. Ba5 {[%emt 0:00:03]} Qe8 {[%emt 0:00:29]} 27. Bc7 {[%emt 0:00:03]} Ra8 {[%emt 0:00:34]} 28. Nb6 {[%emt 0:00:04]} Raa7 {[%emt 0:00:19]} 29. Nxc8 {[%emt 0:00:26]} Qxc8 {[%emt 0:00:06]} 30. Qe2 {[%emt 0:00:42]} e5 {[%emt 0:00:32]} 31. Ra4 {[%emt 0:00:36]} Ne6 {[%emt 0:00:07]} 32. Qg4 {[%emt 0:01:01]} Qe8 {[%emt 0:00:03]} 33. Rc4 {[%emt 0:00:38]} Nxc7 {[%emt 0:00:32]} 34. dxc7 {[%emt 0:01:12]} Rxc7 {[%emt 0:00:04]} 35. Rxf6 {[%emt 0:01:04]} Qe7 {[%emt 0:00:35]} 36. Re6 {[%emt 0:00:16]} Qf7 {[%emt 0:01:08]} 37. h3 {[%emt 0:00:28]} Rxc4 {[%emt 0:00:31]} 38. Qxc4 {[%emt 0:00:12]} Qf1+ {[%emt 0:00:55]} 39. Kh2 {[%emt 0:00:05]} Qf4+ {[%emt 0:00:02]} 40. Qxf4 {[%emt 0:00:08]} exf4 {[%emt 0:00:01]} 41. Re4 {[%emt 0:00:11]} g5 {[%emt 0:00:22]} 42. Ra4 {[%emt 0:00:08]} Rb7 {[%emt 0:00:20]} 43. b4 {[%emt 0:00:07]} Rb6 {[%emt 0:00:06]} 44. Kg1 {[%emt 0:00:04]} Kf7 {[%emt 0:00:01]} 45. Kf2 {[%emt 0:00:06]} Ke6 {[%emt 0:00:04]} 46. Kf3 {[%emt 0:00:01]} h5 {[%emt 0:00:12]} 47. Ke4 {[%emt 0:00:02]} Rd6 {[%emt 0:00:06]} 48. d4 {[%emt 0:00:02]} Kf6 {[%emt 0:00:01]} 49. d5 {[%emt 0:00:15]} Rb6 {[%emt 0:00:15]} 50. Kd4 {[%emt 0:00:11]} Rd6 {[%emt 0:00:02]} 51. Kc5 {[%emt 0:00:05]} Ke5 {[%emt 0:00:01]} 52. Kc4 {[%emt 0:00:10]} g4 {[%emt 0:00:21]} 53. hxg4 {[%emt 0:00:14]} hxg4 {[%emt 0:00:01]} 54. Ra1 {[%emt 0:00:01]} f3 {[%emt 0:00:14]} 55. gxf3 {[%emt 0:00:14]} gxf3 {[%emt 0:00:01]} 56. Re1+ {[%emt 0:00:01]} Kf4 {[%emt 0:00:05]} 57. Kc5 {[%emt 0:00:01]} Rd8 {[%emt 0:00:12]} 58. d6 {[%emt 0:00:03]} f2 {[%emt 0:00:02]} 59. Rd1 {[%emt 0:00:05]} Ke3 {[%emt 0:00:04]} 60. Kc6 {[%emt 0:00:03]} Ke2 {[%emt 0:00:02]} 61. Ra1 {[%emt 0:00:10]} f1=Q {[%emt 0:00:50]} 62. Rxf1 {[%emt 0:00:01]} Kxf1 {[%emt 0:00:02]} 63. Kc7 {[%emt 0:00:03]} Rh8 {[%emt 0:00:08]} 64. d7 {[%emt 0:00:01]} Ke2 {[%emt 0:00:05]} 65. d8=Q {[%emt 0:00:18]} Rxd8 {[%emt 0:00:02]} 66. Kxd8 {[%emt 0:00:01]} Kd3 {[%emt 0:00:02]} 67. Kc7 {[%emt 0:00:02]} Kc4 {[%emt 0:00:01]} 68. Kb6 {[%emt 0:00:01]} Kxb4 {[%emt 0:00:02]} 69. Kxa6 {[%emt 0:00:01]} 1/2-1/2

[Event "African Games Rapid Open 2019"]
[Site "Casablanca"]
[Date "2019.08.27"]
[Round "8.17"]
[White "Asante Debesai Zerabruk"]
[Black "Ebosse, Kingue Victor Patric"]
[Result "0-1"]
[ECO "B92"]
[WhiteElo "1712"]
[BlackElo "2055"]
[Annotator "NA"]
[PlyCount "52"]
[EventDate "2019.08.26"]
[EventType "team-tourn"]
[EventCountry "MAR"]
[SourceTitle "playchess.com"]
[Source "ChessBase"]
[SourceQuality "1"]
[TimeControl "900+10"]

1. e4 {[%emt 0:00:00]} c5 {[%emt 0:00:00]} 2. Nf3 {[%emt 0:00:00]} d6 {[%emt 0:00:00]} 3. d4 {[%emt 0:00:00]} cxd4 4. Nxd4 {[%emt 0:00:00]} Nf6 {[%emt 0:00:00]} 5. Nc3 {[%emt 0:00:00]} a6 {[%emt 0:00:00]} 6. Be2 {[%emt 0:00:02]} e5 {[%emt 0:00:03]} 7. Nb3 {[%emt 0:00:01]} Be6 {[%emt 0:00:02]} 8. Be3 {[%emt 0:00:04]} Nbd7 {[%emt 0:00:02]} 9. O-O {[%emt 0:00:31]} Rc8 {[%emt 0:00:08]} 10. f3 {[%emt 0:00:34]} b5 {[%emt 0:00:06]} 11. Bg5 {[%emt 0:00:42]} Be7 {[%emt 0:00:04]} 12. Qd2 {[%emt 0:00:19]} b4 {[%emt 0:00:24]} 13. Bxf6 {[%emt 0:00:32]} bxc3 {[%emt 0:00:12]} 14. Bxe7 {[%emt 0:00:05]} Qb6+ {[%emt 0:00:05]} 15. Kh1 {[%emt 0:03:25]} cxd2 {[%emt 0:00:05]} 16. Bg5 {[%emt 0:00:01]} Rxc2 {[%emt 0:00:24]} 17. Bxd2 {[%emt 0:00:28]} Bxb3 {[%emt 0:00:10]} 18. axb3 {[%emt 0:00:27]} Rxd2 {[%emt 0:00:03]} 19. Rxa6 {[%emt 0:00:05]} Rxe2 {[%emt 0:00:16]} 20. Rxb6 {[%emt 0:00:23]} Nxb6 {[%emt 0:00:03]} 21. h3 {[%emt 0:00:16]} Rxb2 {[%emt 0:00:04]} 22. Rd1 {[%emt 0:00:03]} Ke7 {[%emt 0:00:08]} 23. Rd3 {[%emt 0:00:08]} Ra8 {[%emt 0:00:08]} 24. Rc3 {[%emt 0:00:33]} Ra1+ {[%emt 0:00:12]} 25. Kh2 {[%emt 0:00:01]} Raa2 {[%emt 0:00:02]} 26. Rc7+ {[%emt 0:00:13]} Kd8 {[%emt 0:00:06]} 0-1

[Event "African Games Rapid Open 2019"]
[Site "Casablanca"]
[Date "2019.08.27"]
[Round "8.18"]
[White "Sang, Ricky"]
[Black "Kouya, Tyeoulou Bernardin F"]
[Result "0-1"]
[ECO "D00"]
[WhiteElo "1971"]
[BlackElo "1770"]
[Annotator "NA"]
[PlyCount "122"]
[EventDate "2019.08.26"]
[EventType "team-tourn"]
[EventCountry "MAR"]
[SourceTitle "playchess.com"]
[Source "ChessBase"]
[SourceQuality "1"]
[TimeControl "900+10"]

1. d4 {[%emt 0:00:00]} d5 {[%emt 0:00:00]} 2. Bf4 {[%emt 0:00:00]} Nf6 {[%emt 0:00:00]} 3. e3 {[%emt 0:00:00]} e6 {[%emt 0:00:00]} 4. Nd2 {[%emt 0:00:00]} Be7 {[%emt 0:00:00]} 5. Bd3 {[%emt 0:00:06]} Nbd7 {[%emt 0:00:03]} 6. Ngf3 {[%emt 0:00:12]} O-O {[%emt 0:00:06]} 7. Ne5 {[%emt 0:00:03]} c5 {[%emt 0:00:07]} 8. c3 {[%emt 0:00:02]} a6 {[%emt 0:00:19]} 9. h4 {[%emt 0:00:02]} h6 {[%emt 0:00:14]} 10. g4 {[%emt 0:00:04]} Nxe5 {[%emt 0:00:03]} 11. dxe5 {[%emt 0:00:02]} Nd7 {[%emt 0:00:03]} 12. g5 {[%emt 0:00:18]} Qc7 {[%emt 0:00:50]} 13. gxh6 {[%emt 0:00:41]} g6 {[%emt 0:00:01]} 14. Nf3 {[%emt 0:00:47]} Kh7 {[%emt 0:00:15]} 15. h5 {[%emt 0:00:07]} Rg8 {[%emt 0:00:03]} 16. Rg1 {[%emt 0:01:15]} b5 {[%emt 0:00:13]} 17. Qc2 {[%emt 0:00:18]} Nf8 {[%emt 0:00:38]} 18. Bg5 {[%emt 0:01:12]} c4 {[%emt 0:00:16]} 19. Be2 {[%emt 0:00:16]} Bb7 {[%emt 0:00:04]} 20. O-O-O {[%emt 0:00:26]} a5 {[%emt 0:00:24]} 21. Bf6 {[%emt 0:00:36]} Bxf6 {[%emt 0:00:17]} 22. exf6 {[%emt 0:00:06]} b4 {[%emt 0:00:14]} 23. Ng5+ {[%emt 0:00:07]} Kh8 {[%emt 0:00:02]} 24. h7 {[%emt 0:00:30]} Nxh7 {[%emt 0:00:02]} 25. Nxh7 {[%emt 0:00:04]} b3 {[%emt 0:00:50]} 26. axb3 {[%emt 0:00:07]} cxb3 {[%emt 0:00:02]} 27. Qd2 {[%emt 0:01:26]} a4 {[%emt 0:00:22]} 28. hxg6 {[%emt 0:00:06]} Rxg6 {[%emt 0:00:03]} 29. Rxg6 {[%emt 0:01:30]} fxg6 {[%emt 0:00:09]} 30. Rh1 a3 {[%emt 0:01:25]} 31. Ng5+ {[%emt 0:00:31]} Kg8 {[%emt 0:00:01]} 32. f7+ {[%emt 0:00:49]} Kf8 33. Nxe6+ {[%emt 0:00:18]} Kxf7 {[%emt 0:04:36]} 34. Nxc7 a2 {[%emt 0:00:02]} 35. Rh7+ {[%emt 0:01:14]} Kg8 36. Rh8+ {[%emt 0:00:12]} Kxh8 {[%emt 0:00:52]} 37. Qd4+ {[%emt 0:00:05]} Kg8 38. Bd3 {[%emt 0:01:26]} a1=Q+ {[%emt 0:00:31]} 39. Bb1 {[%emt 0:00:20]} Ra2 {[%emt 0:01:55]} 40. Qd2 d4 41. f3 {[%emt 0:01:30]} Bxf3 {[%emt 0:00:39]} 42. Nd5 {[%emt 0:01:54]} Bxd5 {[%emt 0:00:21]} 43. Qh2 {[%emt 0:00:07]} Be4 {[%emt 0:00:40]} 44. Qb8+ {[%emt 0:00:04]} Kf7 {[%emt 0:00:38]} 45. Qxb3+ {[%emt 0:00:49]} Kf6 {[%emt 0:00:24]} 46. Qxa2 {[%emt 0:00:10]} Qxa2 {[%emt 0:00:16]} 47. Bxa2 {[%emt 0:00:03]} dxe3 {[%emt 0:00:04]} 48. Kd1 {[%emt 0:00:03]} Bd3 {[%emt 0:00:04]} 49. Ke1 {[%emt 0:00:05]} g5 {[%emt 0:00:02]} 50. Bd5 {[%emt 0:00:19]} g4 {[%emt 0:00:04]} 51. c4 {[%emt 0:00:09]} g3 {[%emt 0:00:01]} 52. c5 {[%emt 0:00:13]} Ke5 {[%emt 0:00:08]} 53. Bg2 {[%emt 0:00:10]} Be4 {[%emt 0:00:14]} 54. Bh3 {[%emt 0:01:36]} g2 {[%emt 0:00:11]} 55. Bxg2 Bxg2 56. Ke2 {[%emt 0:00:15]} Kd4 {[%emt 0:00:10]} 57. b4 {[%emt 0:00:07]} Bc6 {[%emt 0:00:02]} 58. Ke1 {[%emt 0:00:07]} Bb5 {[%emt 0:00:04]} 59. Kd1 {[%emt 0:00:09]} e2+ {[%emt 0:00:06]} 60. Ke1 {[%emt 0:00:01]} Kd3 {[%emt 0:00:05]} 61. c6 {[%emt 0:00:54]} Bxc6 {[%emt 0:00:04]} 0-1

[Event "African Games Rapid Open 2019"]
[Site "Casablanca"]
[Date "2019.08.27"]
[Round "8.19"]
[White "Rita, Jeorciley"]
[Black "Yahi, Mohamed Salem"]
[Result "1-0"]
[ECO "B00"]
[WhiteElo "1920"]
[BlackElo "1928"]
[Annotator "NA"]
[PlyCount "63"]
[EventDate "2019.08.26"]
[EventType "team-tourn"]
[EventCountry "MAR"]
[SourceTitle "playchess.com"]
[Source "ChessBase"]
[SourceQuality "1"]
[TimeControl "900+10"]

1. e4 {[%emt 0:00:00]} d6 {[%emt 0:00:00]} 2. d4 {[%emt 0:00:00]} Nf6 {[%emt 0:00:00]} 3. Nd2 {[%emt 0:00:06]} g6 {[%emt 0:00:12]} 4. b3 {[%emt 0:00:02]} Bg7 {[%emt 0:00:07]} 5. Bb2 {[%emt 0:00:01]} O-O {[%emt 0:00:10]} 6. Ngf3 {[%emt 0:00:09]} Bg4 {[%emt 0:00:04]} 7. h3 {[%emt 0:00:06]} Bxf3 {[%emt 0:00:03]} 8. Qxf3 {[%emt 0:00:03]} Nbd7 {[%emt 0:00:10]} 9. Bd3 {[%emt 0:00:22]} e5 {[%emt 0:00:05]} 10. c3 {[%emt 0:00:15]} c5 {[%emt 0:01:00]} 11. d5 {[%emt 0:01:02]} Nh5 {[%emt 0:00:49]} 12. g3 {[%emt 0:00:50]} a6 {[%emt 0:00:27]} 13. O-O {[%emt 0:00:17]} b5 {[%emt 0:01:29]} 14. c4 {[%emt 0:00:02]} b4 {[%emt 0:00:16]} 15. a3 {[%emt 0:00:19]} Bh6 {[%emt 0:00:14]} 16. Qe2 {[%emt 0:00:50]} a5 {[%emt 0:00:50]} 17. a4 {[%emt 0:00:06]} Qe7 {[%emt 0:00:50]} 18. Nf3 {[%emt 0:00:32]} Ng7 {[%emt 0:00:56]} 19. Nh4 {[%emt 0:00:54]} Bg5 {[%emt 0:01:56]} 20. Ng2 {[%emt 0:00:01]} f5 {[%emt 0:00:14]} 21. exf5 {[%emt 0:00:15]} Nxf5 {[%emt 0:00:08]} 22. Bxf5 {[%emt 0:00:16]} Rxf5 {[%emt 0:00:43]} 23. f4 {[%emt 0:00:01]} Bf6 {[%emt 0:00:44]} 24. g4 {[%emt 0:00:11]} exf4 {[%emt 0:00:35]} 25. Qxe7 {[%emt 0:00:04]} Bxe7 {[%emt 0:00:09]} 26. gxf5 {[%emt 0:00:04]} g5 {[%emt 0:00:02]} 27. Rae1 {[%emt 0:00:11]} Kf7 {[%emt 0:00:47]} 28. Re6 {[%emt 0:02:01]} Rg8 {[%emt 0:01:12]} 29. Rfe1 {[%emt 0:00:11]} Bf8 {[%emt 0:00:28]} 30. f6 {[%emt 0:00:59]} Rg6 {[%emt 0:00:27]} 31. Re7+ {[%emt 0:00:05]} Bxe7 {[%emt 0:01:14]} 32. Rxe7+ {[%emt 0:00:03]} 1-0

[Event "African Games Rapid Open 2019"]
[Site "Casablanca"]
[Date "2019.08.27"]
[Round "8.20"]
[White "Hassan, Sidi Mohamed cheikh"]
[Black "Koualet-Bebondi, Vianney Archeveq"]
[Result "1-0"]
[ECO "C41"]
[WhiteElo "1752"]
[BlackElo "1679"]
[Annotator "NA"]
[PlyCount "73"]
[EventDate "2019.08.26"]
[EventType "team-tourn"]
[EventCountry "MAR"]
[SourceTitle "playchess.com"]
[Source "ChessBase"]
[SourceQuality "1"]
[TimeControl "900+10"]

1. e4 {[%emt 0:00:00]} e5 {[%emt 0:00:00]} 2. Nf3 {[%emt 0:00:00]} d6 {[%emt 0:00:00]} 3. d4 {[%emt 0:00:00]} exd4 {[%emt 0:00:04]} 4. Nxd4 {[%emt 0:00:00]} Nf6 {[%emt 0:00:07]} 5. Nc3 {[%emt 0:00:02]} c6 {[%emt 0:00:05]} 6. Be3 {[%emt 0:00:15]} Be7 {[%emt 0:00:03]} 7. f3 {[%emt 0:00:05]} O-O {[%emt 0:01:12]} 8. Qd2 {[%emt 0:00:02]} a6 {[%emt 0:00:06]} 9. O-O-O {[%emt 0:00:45]} b5 {[%emt 0:00:21]} 10. g4 {[%emt 0:00:30]} Qa5 {[%emt 0:00:08]} 11. Kb1 {[%emt 0:00:03]} b4 {[%emt 0:00:22]} 12. Nce2 {[%emt 0:00:10]} c5 {[%emt 0:00:04]} 13. Nf5 {[%emt 0:00:09]} Bxf5 {[%emt 0:00:12]} 14. exf5 {[%emt 0:00:08]} Ne8 {[%emt 0:01:41]} 15. Nf4 {[%emt 0:01:26]} Nc7 16. Bc4 {[%emt 0:00:11]} Nd7 {[%emt 0:01:59]} 17. g5 {[%emt 0:00:04]} Ne5 {[%emt 0:00:40]} 18. Bd5 {[%emt 0:02:27]} Nxd5 19. Nxd5 {[%emt 0:00:03]} Bd8 {[%emt 0:01:46]} 20. Qg2 {[%emt 0:01:10]} g6 {[%emt 0:02:20]} 21. Qh3 {[%emt 0:02:58]} Qb5 {[%emt 0:01:22]} 22. Nf6+ {[%emt 0:00:17]} Bxf6 {[%emt 0:00:15]} 23. gxf6 {[%emt 0:00:02]} Kh8 {[%emt 0:00:10]} 24. Qh6 {[%emt 0:01:59]} Rg8 {[%emt 0:00:16]} 25. Rhg1 {[%emt 0:01:27]} Qd7 {[%emt 0:00:11]} 26. fxg6 {[%emt 0:00:05]} fxg6 {[%emt 0:00:21]} 27. Bxc5 {[%emt 0:00:14]} Nf7 {[%emt 0:00:45]} 28. Qh4 {[%emt 0:00:12]} a5 {[%emt 0:01:01]} 29. Bxd6 {[%emt 0:00:31]} Rad8 {[%emt 0:00:44]} 30. Bf4 {[%emt 0:02:00]} Qxd1+ {[%emt 0:01:29]} 31. Rxd1 {[%emt 0:00:02]} Rxd1+ 32. Bc1 Rgd8 {[%emt 0:00:48]} 33. b3 {[%emt 0:00:27]} Rf1 {[%emt 0:00:31]} 34. Kb2 {[%emt 0:02:16]} Rdd1 {[%emt 0:00:18]} 35. Qf4 {[%emt 0:00:03]} h6 36. Qb8+ Kh7 37. Qf8 1-0

[Event "African Games Rapid Open 2019"]
[Site "Casablanca"]
[Date "2019.08.27"]
[Round "8.21"]
[White "Kamara, Ansumana"]
[Black "Naipal, Hoolan"]
[Result "0-1"]
[ECO "C91"]
[WhiteElo "1928"]
[BlackElo "1785"]
[Annotator "NA"]
[PlyCount "138"]
[EventDate "2019.08.26"]
[EventType "team-tourn"]
[EventCountry "MAR"]
[SourceTitle "playchess.com"]
[Source "ChessBase"]
[SourceQuality "1"]
[TimeControl "900+10"]

1. e4 {[%emt 0:00:00]} e5 {[%emt 0:00:00]} 2. Nf3 {[%emt 0:00:00]} Nc6 {[%emt 0:00:00]} 3. Bb5 {[%emt 0:00:00]} a6 {[%emt 0:00:00]} 4. Ba4 {[%emt 0:00:00]} Nf6 {[%emt 0:00:00]} 5. O-O {[%emt 0:00:04]} Be7 {[%emt 0:00:00]} 6. Re1 {[%emt 0:00:04]} b5 {[%emt 0:00:00]} 7. Bb3 {[%emt 0:00:02]} d6 {[%emt 0:00:00]} 8. c3 {[%emt 0:00:03]} O-O {[%emt 0:00:05]} 9. d4 {[%emt 0:00:02]} Bg4 {[%emt 0:00:03]} 10. d5 {[%emt 0:00:03]} Na5 {[%emt 0:00:52]} 11. Bc2 {[%emt 0:00:02]} c6 {[%emt 0:00:16]} 12. dxc6 {[%emt 0:00:21]} Nxc6 {[%emt 0:00:03]} 13. Nbd2 {[%emt 0:00:03]} d5 {[%emt 0:01:55]} 14. exd5 {[%emt 0:00:10]} Qxd5 {[%emt 0:00:06]} 15. h3 {[%emt 0:00:17]} Bh5 {[%emt 0:00:39]} 16. Ne4 {[%emt 0:00:10]} Qxd1 {[%emt 0:00:23]} 17. Bxd1 {[%emt 0:00:13]} Nxe4 {[%emt 0:02:19]} 18. Rxe4 {[%emt 0:00:04]} Rad8 {[%emt 0:00:49]} 19. Be2 {[%emt 0:02:16]} f5 {[%emt 0:01:51]} 20. Re3 {[%emt 0:00:12]} e4 {[%emt 0:04:24]} 21. Nd2 {[%emt 0:01:10]} Bxe2 {[%emt 0:00:40]} 22. Rxe2 {[%emt 0:00:03]} Bf6 {[%emt 0:00:31]} 23. a4 {[%emt 0:00:05]} b4 {[%emt 0:00:09]} 24. c4 {[%emt 0:00:29]} Nd4 {[%emt 0:00:13]} 25. Re1 {[%emt 0:00:21]} Nc2 {[%emt 0:00:01]} 26. Nf1 {[%emt 0:01:40]} Nxe1 {[%emt 0:00:13]} 27. Bd2 {[%emt 0:00:12]} Nd3 {[%emt 0:00:11]} 28. Rb1 {[%emt 0:00:35]} a5 {[%emt 0:02:01]} 29. b3 {[%emt 0:00:18]} Nc5 {[%emt 0:00:29]} 30. Be3 {[%emt 0:00:20]} Bd4 {[%emt 0:00:20]} 31. Bg5 {[%emt 0:00:05]} Rd7 {[%emt 0:00:13]} 32. Ne3 {[%emt 0:00:06]} Bxe3 {[%emt 0:00:05]} 33. Bxe3 {[%emt 0:00:03]} Ne6 {[%emt 0:00:09]} 34. Bb6 {[%emt 0:00:13]} Ra8 {[%emt 0:00:11]} 35. c5 {[%emt 0:00:06]} Nd8 {[%emt 0:00:22]} 36. Re1 {[%emt 0:01:19]} Nc6 {[%emt 0:00:03]} 37. f3 {[%emt 0:00:14]} Re8 {[%emt 0:00:12]} 38. fxe4 {[%emt 0:00:12]} Rxe4 {[%emt 0:00:10]} 39. Rf1 {[%emt 0:00:06]} g6 {[%emt 0:00:14]} 40. Rf3 {[%emt 0:00:03]} Rd2 {[%emt 0:00:29]} 41. Bc7 {[%emt 0:01:51]} Ree2 {[%emt 0:00:18]} 42. Rg3 {[%emt 0:00:28]} Kf7 {[%emt 0:00:20]} 43. Bf4 {[%emt 0:00:47]} Rc2 {[%emt 0:00:10]} 44. Bd6 {[%emt 0:00:13]} Rc3 {[%emt 0:00:23]} 45. Kf1 {[%emt 0:00:38]} Rxg3 {[%emt 0:00:13]} 46. Kxe2 {[%emt 0:00:04]} Rxb3 {[%emt 0:00:02]} 47. Kd2 {[%emt 0:00:25]} Ke6 {[%emt 0:00:13]} 48. Kc2 {[%emt 0:00:13]} Ra3 {[%emt 0:00:12]} 49. g3 {[%emt 0:00:33]} Ne5 {[%emt 0:00:06]} 50. g4 {[%emt 0:00:46]} fxg4 {[%emt 0:00:05]} 51. hxg4 {[%emt 0:00:02]} h5 {[%emt 0:00:04]} 52. gxh5 {[%emt 0:00:06]} gxh5 {[%emt 0:00:03]} 53. Bc7 {[%emt 0:00:17]} Nc4 {[%emt 0:00:19]} 54. Bf4 {[%emt 0:00:29]} Kd5 {[%emt 0:00:25]} 55. Kb1 {[%emt 0:00:49]} Kxc5 {[%emt 0:00:08]} 56. Bc7 {[%emt 0:00:08]} h4 {[%emt 0:00:12]} 57. Kc1 {[%emt 0:00:16]} Kd4 {[%emt 0:00:15]} 58. Kb1 {[%emt 0:00:15]} Kd3 {[%emt 0:00:11]} 59. Bf4 {[%emt 0:00:18]} h3 {[%emt 0:00:12]} 60. Bc7 {[%emt 0:00:06]} Nd2+ {[%emt 0:00:13]} 61. Kb2 {[%emt 0:00:12]} Nf3 {[%emt 0:00:03]} 62. Bxa5 {[%emt 0:00:09]} h2 {[%emt 0:00:06]} 63. Bxb4 {[%emt 0:00:03]} Rxa4 {[%emt 0:00:03]} 64. Kb3 {[%emt 0:00:03]} Rxb4+ {[%emt 0:00:05]} 65. Kxb4 {[%emt 0:00:01]} h1=Q {[%emt 0:00:04]} 66. Kb3 {[%emt 0:00:03]} Qc1 {[%emt 0:00:05]} 67. Ka2 {[%emt 0:00:03]} Qc4+ {[%emt 0:00:14]} 68. Ka3 {[%emt 0:00:03]} Qb5 {[%emt 0:00:16]} 69. Ka2 {[%emt 0:00:06]} Kc2 {[%emt 0:00:04]} 0-1